Cogmind - Beta 15 @@@ ROGUE MODE // 2025.07.14 @ 05:39:48 Player: vilepis Result: Destroyed by exploding Fusion Modulator Performance ------------- Evolutions (2) 1000 Regions Visited (3) 600 Robots Destroyed (47) 235 Value Destroyed (1527) 1527 Prototype IDs (0) 0 Alien Tech Used (0) 0 Bonus (0) 0 TOTAL SCORE: 3362 Bonus ------- None Cogmind --------- Core Integrity 0/550 Matter 224/300 Energy 81/100 System Corruption 2% Temperature Cool (12) Movement Core (100) Ox1 Location -8/Materials Parts ------- > --- POWER (1) -------- (None) > --- PROPULSION (2) --- (None) > --- UTILITY (5) ------ Improved Targeting Computer > --- WEAPON (3) ------- Shotgun Shotgun > --- INVENTORY (5) ---- Wheel Peak State ------------ > --- POWER ------------ Light Nuclear Core > --- PROPULSION ------- Wheel Subdweller Monowheel > --- UTILITY ---------- Improved Heat Sink Improved Heat Sink Improved Targeting Computer Reaction Control System Improved Propulsion Shielding > --- WEAPON ----------- EM Pulse Cannon EM Pulse Cannon Minigun > --- INVENTORY -------- (None) [Rating: 29] Favorites ----------- Power Ion Engine Engine Ion Engine Power Core Light Nuclear Core Propulsion Compact Wheel Wheel Compact Wheel Flight Unit Surge Thruster Utility Targeting Computer Device Improved Heat Sink Storage Small Storage Unit Processor Targeting Computer Protection Improved Propulsion Shielding Weapon Medium Laser Energy Gun Medium Laser Energy Cannon EM Pulse Cannon Ballistic Gun Subdweller Machine Gun Ballistic Cannon Light Cannon Special Weapon Enhanced Flamer Build | -11 -10 -10 -8 ------- Run | Yrd Mat Sub Mat Slots Evolved 4 | . . . 4 Power . | . . . . Propulsion . | . . . . Utility 3 | . . . 3 Weapon 1 | . . . 1 Parts Attached 41 | 6 5 4 26 Power 3 | 1 . . 2 Engine 1 | 1 . . . Core 2 | . . . 2 Reactor . | . . . . Propulsion 10 | 2 . 1 7 Treads . | . . . . Leg . | . . . . Wheel 7 | 2 . 1 4 Hover . | . . . . Flight 3 | . . . 3 Utility 11 | 1 2 1 7 Device 4 | . . . 4 Storage 1 | 1 . . . Processor 3 | . 2 . 1 Hackware . | . . . . Protection 3 | . . 1 2 Artifact . | . . . . Weapon 17 | 2 3 2 10 Energy Gun 6 | 1 2 . 3 Energy Cannon 2 | . . . 2 Ballistic Gun 6 | 1 . 1 4 Ballistic Cannon 1 | . 1 . . Launcher . | . . . . Special Weapon 2 | . . 1 1 Impact Weapon . | . . . . Slashing Weapon . | . . . . Piercing Weapon . | . . . . Special Melee Weapon . | . . . . Unidentified Prototypes . | . . . . Corrupted Parts 1 | . . . 1 System Corruption 2 | . . . 2 Parts Lost 28 | . 1 7 20 Power 3 | . . 1 2 Propulsion 7 | . . 2 5 Utility 8 | . . 3 5 Weapon 10 | . 1 1 8 Highest Loss Streak 9 | . 1 4 9 To Critical Strikes . | . . . . Average Backups . | . . . . Power . | . . . . Propulsion . | . . . . Utility . | . . . . Weapon . | . . . . Tool/Special . | . . . . Unused Backups 1 | . . . 1 Power . | . . . . Propulsion 1 | . . . 1 Utility . | . . . . Weapon . | . . . . Tool/Special . | . . . . Average Slot Usage (%) 73 | . 96 64 67 Engine 5 | . 13 3 . Core 1 | . . . 3 Wheel 18 | . 25 21 9 Flight 1 | . . . 3 Device 4 | . . . 15 Processor 11 | . 23 7 6 Protection 4 | . . 3 10 Energy Gun 13 | . 17 16 6 Ballistic Gun 5 | . 4 6 6 Ballistic Cannon 1 | . 6 . . Special Weapon 3 | . . 5 1 Peak Build Rating 29 | 6 8 10 29 Average Rating 10 | 4 6 7 18 On Entrance 5 | . 6 8 7 Naked Turns . | . . . . Heaviest Build 25 | 14 14 25 25 Greatest Support 36 | 32 32 36 30 Greatest Overweight (x) 4 | . 3 1 4 Average Overweight (x) . | . . . . Largest Inventory Capacity 8 | 8 8 5 5 Average Capacity 5 | 6 5 5 5 Most Carried 4 | . . 4 4 Average Carried 1 | . . 2 1 Final Capacity 8 | 8 5 5 5 Final Carried 4 | . . 4 1 Class Distribution -------------------- 81% | Mutant 8% | Scavenger-Mutant 6% | Scavenger-Gunner 3% | Gunner Dominant Class ---------------- Mutant | -10/Materials Mutant | -10/Subcaves Mutant | -8/Materials Resources | -11 -10 -10 -8 ----------- Run | Yrd Mat Sub Mat Matter Collected 967 | 254 192 43 478 Remotely . | . . . . Salvage Created 1632 | . 455 83 1094 Parts 101 | . 33 7 61 Haulers Intercepted . | . . . . Recyclers Shooed 1 | . 1 . . Parts Field Recycled . | . . . . Retrieved Matter . | . . . . Parts Self-Destructed . | . . . . Prevented . | . . . . Kills | -11 -10 -10 -8 ------- Run | Yrd Mat Sub Mat Combat Hostiles Destroyed 42 | . 11 3 28 Melee 1 | . . . 1 Guns 29 | . 8 3 18 Cannons 10 | . 3 . 7 Classes Destroyed 12 | . 5 1 6 Worker 2 | . 1 . 1 Builder 1 | . . . 1 Recycler 1 | . 1 . . Watcher 1 | . 1 . . Swarmer 9 | . 3 . 6 Cutter 3 | . . . 3 Grunt 14 | . 8 . 6 Brawler 1 | . . . 1 Duelist 1 | . . . 1 Sentry 5 | . . . 5 Specialist 6 | . . . 6 Subdweller 3 | . . 3 . Best Kill Streak 5 | . 5 1 4 Combat Bots Only 4 | . 4 1 4 Max Kills in Single Turn 2 | . 1 1 2 Gunslinging 1 | . . . 1 Exploded . | . . . . Melee 1 | . . . 1 Uniques/NPCs Destroyed . | . . . . Combat | -11 -10 -10 -8 -------- Run | Yrd Mat Sub Mat Hostile Shots Fired 371 | . 37 34 300 Missed 155 | . 9 9 137 Hits 216 | . 28 25 163 Melee 13 | . . . 13 Projectile 203 | . 28 25 150 AOE 3 | . . 1 2 Critical Strikes 6 | . . . 6 Damage Taken 2907 | . 305 560 2042 Core 867 | . 99 150 618 Absorbed by Shields . | . . . . Redirected to Shielding 153 | . . . 153 Core Remaining (%) 50 | 100 . . . Volleys Fired 148 | . 27 31 90 Largest 3 | . 2 2 3 Hottest 151 | . 115 115 151 Shots Fired 260 | . 52 58 150 Gun 208 | . 34 56 118 Cannon 34 | . 18 . 16 Launcher . | . . . . Special 18 | . . 2 16 Kinetic 99 | . 21 9 69 Thermal 144 | . 30 49 65 Explosive . | . . . . Electromagnetic 17 | . 1 . 16 Robot Hit Streak 16 | . 8 16 14 Robot Miss Streak 5 | . 3 2 5 Penetration Max . | . . . . Secondary Targets 2 | . . . 2 Max Gunslinging Chain 1 | . . . 1 Shots Hit Robots 176 | . 31 40 105 Core Hits 76 | . 21 7 48 Critical Kills . | . . . . Critical Parts Destroyed . | . . . . Critical Strikes 12 | . 2 2 8 Burn 12 | . 2 2 8 Melee Attacks . | . . . . Impact . | . . . . Slashing . | . . . . Piercing . | . . . . Sneak Attacks . | . . . . Combat Hostiles . | . . . . Follow-up Attacks . | . . . . Damage Inflicted 2756 | . 505 466 1785 Guns 2044 | . 273 466 1305 Cannons 506 | . 232 . 274 Explosions 35 | . . . 35 Melee . | . . . . Ramming 15 | . . . 15 Kinetic 1157 | . 255 83 819 Thermal 1310 | . 250 383 677 Explosive . | . . . . Electromagnetic 274 | . . . 274 Impact . | . . . . Slashing . | . . . . Piercing . | . . . . Highest Corruption 2 | . . . 2 Average Corruption 2 | . . . 2 Corruption Purged . | . . . . Corruption Blocked . | . . . . Effects 1 | . . . 1 Energy Discharges 1 | . . . 1 Overload Shots . | . . . . Overflow Damage . | . . . . Projectiles . | . . . . Explosions . | . . . . Melee . | . . . . Knockbacks 6 | . 6 . . Impact . | . . . . Kinetic 6 | . 6 . . Secondary . | . . . . Self-Inflicted Damage 6 | . . . 6 Shots . | . . . . Rammed 4 | . . . 4 Targets Rammed 4 | . . . 4 Kicked . | . . . . Crushed . | . . . . Highest Temperature 183 | . 138 . 183 Average Temperature 52 | . 54 . 49 Received Heat Transfer 453 | . 126 84 243 Siege Activations . | . . . . Martial Activations . | . . . . Shielding Activations . | . . . . Robots Disrupted 1 | . . . 1 Combat Hostiles 1 | . . . 1 Robots Corrupted . | . . . . Combat Hostiles . | . . . . Parts Fried 1 | . . . 1 Impact Corruptions . | . . . . Robots Melted 2 | . . . 2 Combat Hostiles 2 | . . . 2 Parts Melted 6 | . 1 . 5 Heat Transferred 5276 | . 851 1184 3241 Parts Sabotaged . | . . . . Parts Stolen . | . . . . Parts Stripped . | . . . . Power Chain Reactions 1 | . . . 1 Alert | -11 -10 -10 -8 ------- Run | Yrd Mat Sub Mat Maximum Alert Level 1 | . . . 1 Low Security (%) 94 | 100 100 . 90 Level 1 5 | . . . 9 Level 2 . | . . . . Level 3 . | . . . . Level 4 . | . . . . Level 5 . | . . . . High Security . | . . . . Max Security . | . . . . Peak Influence 323 | . 158 . 323 Initial . | . . . . Average 87 | . 45 . 128 Influence Increases 1162 | . 347 . 815 Destroy 0b10 Robot/C 780 | . 220 . 560 Destroy 0b10 Robot/NC 25 | . 15 . 10 Destroy Leader 172 | . 52 . 120 Successful Hack 15 | . 15 . . Disable Machine 30 | . . . 30 Destroy Structure 5 | . . . 5 Partial Spotted 15 | . 15 . . Lose Combat Pursuer 120 | . 30 . 90 Influence Decreases 849 | . 229 118 502 Entered New Map 58 | . . 58 . Time Decay 581 | . 219 60 302 Lost Part 210 | . 10 . 200 Squads Dispatched 12 | . 3 . 9 Investigation 1 | . 1 . . Extermination . | . . . . Reinforcement 7 | . 2 . 5 Assault . | . . . . Garrison 4 | . . . 4 Intercept . | . . . . Searches Triggered . | . . . . Construction Impeded . | . . . . Haulers Reinforced . | . . . . Active Scanning Responses . | . . . . Cargo Convoy Interrupts . | . . . . Stealth | -11 -10 -10 -8 --------- Run | Yrd Mat Sub Mat Distress Signals 3 | . . . 3 Communications Jammed . | . . . . Distress Signals . | . . . . Times Spotted 67 | . 19 6 42 Peak Tracking Total 14 | . 4 2 14 Tactical Retreats 7 | . 1 1 5 Traps | -11 -10 -10 -8 ------- Run | Yrd Mat Sub Mat Traps Triggered 3 | . 3 . . Indirectly . | . . . . Trap Hack Attempts . | . . . . Triggered . | . . . . Disarmed . | . . . . Reprogrammed . | . . . . Reused . | . . . . Traps Extracted . | . . . . Installed . | . . . . Triggered . | . . . . Machines | -11 -10 -10 -8 ---------- Run | Yrd Mat Sub Mat Machines Disabled 2 | . . . 2 Max in Single Turn 1 | . . . 1 Machines Repaired . | . . . . Machines Dismantled . | . . . . Machines Sabotaged . | . . . . Overloaded Fab Kills . | . . . . Hacking | -11 -10 -10 -8 --------- Run | Yrd Mat Sub Mat Machines Accessed 4 | . 3 . 1 Terminals 3 | . 3 . . Fabricators . | . . . . Repair Stations . | . . . . Recycling Units . | . . . . Scanalyzers . | . . . . Garrison Access 1 | . . . 1 Total Hacks 7 | . 6 . 1 Successful 3 | . 2 . 1 Failed 4 | . 4 . . Catastrophic 1 | . 1 . . Database Lockouts . | . . . . Manual 4 | . 4 . . Terminals 6 | . 6 . . Fabricators . | . . . . Repair Stations . | . . . . Recycling Units . | . . . . Scanalyzers . | . . . . Garrison Access 1 | . . . 1 Terminal Hacks 2 | . 2 . . Branch Access Points 1 | . 1 . . Recall Investigation 1 | . 1 . . Fabricator Hacks . | . . . . Repair Station Hacks . | . . . . Recycling Unit Hacks . | . . . . Scanalyzer . | . . . . Garrison Access Hacks 1 | . . . 1 Unlock Access 1 | . . . 1 Unauthorized Hacks . | . . . . Terminals . | . . . . Fabricators . | . . . . Repair Stations . | . . . . Recycling Units . | . . . . Scanalyzers . | . . . . Garrison Access . | . . . . Data Cores Recovered . | . . . . Used . | . . . . Hacking Detections 1 | . . . 1 Full Trace Events . | . . . . Feedback Events . | . . . . Feedback Blocked . | . . . . Robot Schematics Acquired . | . . . . Robots Built . | . . . . Authchips . | . . . . Time . | . . . . Total Robot Build Rating . | . . . . Part Schematics Acquired . | . . . . Parts Built . | . . . . Authchips . | . . . . Time . | . . . . Total Part Build Rating . | . . . . Parts Repaired . | . . . . Time . | . . . . Parts Recycled . | . . . . Recycled Matter . | . . . . Retrieved Matter . | . . . . Retrieved Components . | . . . . Parts Scanalyzed . | . . . . Part Schematics Acquired . | . . . . Parts Damaged . | . . . . Bothacking | -11 -10 -10 -8 ------------ Run | Yrd Mat Sub Mat Used RIF Installer . | . . . . Robots Hacked . | . . . . Non-combat . | . . . . Combat . | . . . . Robot Hacks Applied . | . . . . Relay Couplers Released . | . . . . Fabnet Peak Effective % . | . . . . Robots Rewired . | . . . . Allies Hacked . | . . . . Hacks Repelled . | . . . . Allies | -11 -10 -10 -8 -------- Run | Yrd Mat Sub Mat Total Allies . | . . . . Largest Group . | . . . . Highest-Rated Group . | . . . . Highest-Rated Ally . | . . . . Total Orders . | . . . . Ally Attacks . | . . . . Total Damage . | . . . . Kills . | . . . . Allies Corrupted . | . . . . Allies Melted . | . . . . Intel | -11 -10 -10 -8 ------- Run | Yrd Mat Sub Mat Active Infowar (turns) . | . . . . Robot Analysis Total . | . . . . Derelict Logs Recovered . | . . . . Drone Launches . | . . . . Drone Recoveries . | . . . . Exploration | -11 -10 -10 -8 ------------- Run | Yrd Mat Sub Mat Turns Passed 2260 | 54 563 966 677 Spaces Moved 1608 | 47 422 753 386 Core 20 | 3 7 . 10 Treads . | . . . . Legs . | . . . . Wheels 1487 | 44 415 753 275 Hover . | . . . . Flight 101 | . . . 101 Fastest Speed 32 | 50 50 100 32 Average Speed 100 | 96 100 106 87 Slowest Speed 200 | 100 200 120 200 Overloaded Moves . | . . . . Propulsion Burnouts . | . . . . Robots Hopped 5 | . . . 5 Potential Cave-ins . | . . . . Cave-ins Triggered . | . . . . Exploration Rate (%) 30 | 3 70 31 18 Regions Visited 3 Branch Regions 1 Pre-discovered Areas . | . . . . Known Exits Taken . | . . . . Unknown Exits Taken 3 | 1 1 1 . Scrap Searched . | . . . . Spaces Dug . | . . . . Terrain Destroyed 6 | . . 1 5 Melee . | . . . . Projectile 2 | . . 1 1 AOE 4 | . . . 4 Terrain Rammed . | . . . . Walls Destroyed . | . . . . Machines Disabled . | . . . . Actions | -11 -10 -10 -8 --------- Run | Yrd Mat Sub Mat Total 1972 | 52 501 859 560 Wait 147 | . 42 66 39 Move 1596 | 46 421 752 377 Hop 4 | . . . 4 Pick Up 8 | . . 5 3 Fast Attach 41 | 6 8 3 24 Attach 4 | . . . 4 Detach . | . . . . Swap 14 | . 3 1 10 Drop 6 | . . 1 5 Fire 148 | . 27 31 90 Melee . | . . . . Ram 4 | . . . 4 Kick . | . . . . Crush . | . . . . Escape Stasis . | . . . . Rewire . | . . . . Trap . | . . . . Miscellaneous . | . . . . Route ------- -11/Scrapyard -10/Materials (discovered 5 exits: [*Mat x2] / *Min x2 / [*Sub]) -10/Subcaves -8/Materials (discovered 1 exit: Gar) History --------- Turn | Location | Event 19 | -11/Scrapyard | Discovered new exit (range 15) 55 | -11/Scrapyard | Entered Materials 71 | -10/Materials | Identified exit to Mines 297 | -10/Materials | Discovered new exit (range 6) 314 | -10/Materials | Build established: Mutant 411 | -10/Materials | Discovered new exit (range 12) 610 | -10/Materials | Discovered new exit (range 8) 618 | -10/Materials | Entered Subcaves 619 | -10/Subcaves | Approached by a straggling Scientist 867 | -10/Subcaves | Core integrity fell below 50% 884 | -10/Subcaves | Core integrity fell below 20% 920 | -10/Subcaves | Lost 4 parts (1p1n2u) 1116 | -10/Subcaves | Ambushed by Subdweller buried in earth 1517 | -10/Subcaves | Discovered new exit (range 12) 1584 | -10/Subcaves | Entered Materials 1584 | -8/Materials | Evolved 4 slots: Utility x3, Weapon x1 1635 | -8/Materials | Garrison activated, responded to threat 1673 | -8/Materials | Identified exit to Garrison 2002 | -8/Materials | Lost 4 parts (1p1n2w) 2164 | -8/Materials | Core integrity fell below 50% 2219 | -8/Materials | Core integrity fell below 20% 2243 | -8/Materials | Garrison activated, responded to threat 2258 | -8/Materials | Lost 9 parts (1p2n3u3w) 2261 | -8/Materials | Destroyed by exploding Fusion Modulator Last Messages --------------- 02227_ Imp. Heat Sink destroyed. 02227_ Acquired Corrupted Shotgun. 02235_ Integrated Corrupted Shotgun (+2). 02235_ Complication: Surge Thruster rejected. 02235_ Complication: Shotgun rejected. 02235_ Complication: Beam Rifle rejected. 02239_ Acquired Shotgun. 02240_ Destroyed Flight Unit. 02243_ S-10 Pest destroyed. 02243_ Switching to secondary target: S-10 Pest. 02243_ Destroyed Flight Unit. 02243_ S-10 Pest calls for garrison reinforcements. 02243_ ALERT: Activating Garrison Access M001. 02246_ S-10 Pest destroyed. 02247_ Acquired 5 matter. 02252_ System corrupted: Energy discharge (-17). 02254_ X-57 Shotgunner destroyed. 02261_ Fusion Modulator explodes. 02261_ Surge Thruster destroyed. Map ----- +----------------------------------------------------+ | | | | | | | | | | | | | | | | | | | | | | | | | | | | | | | | | | | | | | | ????????????????????????###########??????????????? | | ????????????????????????# #??????????????? | | ?????######????????###### #??????????????? | | ###### ########## !# #??????????????? | | ! *!] =%#= """ #??????????????? | | %= ! = %* =% ! %+[ """ #??????????????? | | +##+## ########## #@ """ #??????????????? | | =%= ######????????## ###= #??????????????? | | &=%* #???????########+###[ ! #??????????????? | | #???????# #!! ###########??????????????? | | #???????# # = |%#????????????????????????? | | ############## #% %%#????????????????????????? | | # = +%= #????????????????????????? | | % #!"T" #????????????????????????? | | " # """ #????????????????????????? | | # "G" ########????????????????????????? | | ## """% ">" #########??????????????????????? | | # """ % ???????????????????? | | / """ ???????????????????? | | # ???????????????????? | | # ##########+#???????????????????? | | # ########+###??????????????????????????????? | | # #???????? ???????????????????????????????? | | ##! #?????????""??????????????????????????????? | | ##% #??????????" ?????????????????????????????? | | ?#*== #?????????????????????????????????????????? | | ?# #?????????????????????????????????????????? | | ?# #?????????????????????????????????????????? | | ?# #?????????????????????????????????????????? | | ?# #?????????????????????????????????????????? | | ?# #?????????????????????????????????????????? | +----------------------------------------------------+ Best States ------------- Heat Dissipation 59 Energy Generation 14 Energy Capacity 250 Matter Stores 300 Matter Capacity 300 Sight Range 16 Terrain Scan Density 10 Armor Coverage 800 Core Shielding 20 Propulsion Shielding 66 Evasion (%) 63 Targeting Accuracy 10 Item Schematics ----------------- None Robot Schematics ------------------ None Fabricated ------------ Nothing Repaired ---------- Nothing Alien Tech Used ----------------- None Achievements -------------- None Challenges ------------ None Game ------ Seed HellfireSwordDerivative Manual? 0 Play Time 00:22:48 Cumulative 17.9 hours Start 2025.07.14 @ 05:19:25 End 2025.07.14 @ 05:39:48 Sessions 1 Manual Loads 0 Difficulty Rogue Special Mode None Game No. 35 Rogue 35 Adventurer 0 Explorer 0 Win Type - Total 0 Types 0/0/0/0/0/0/0/0/0/0 Lore% 10 Gallery% 19 Achievement% 19 Wizard Run 0 Options --------- Layout 2 ASCII 0 Keyboard 0 Movement Mouse Keybinds 1 Fullscreen 2 Font 32/Smallcaps Map View 50x44 Zoom Use 0% Tactical HUD 1 Map Filters NONE Filters NONE Steam 1 RUN: 44e4353f-fef2-4787-9601-1e20c64bb4a5